[Event "Early Titled Tuesday Blitz | February 8 2022"]
[White "Williams, Simon K"]
[Black "Farmani Anosheh, Armin"]
[WhiteFideId "404454"]
[BlackFideId "24613240"]
[WhiteElo "2468"]
[BlackElo "2289"]
[Result "1/2-1/2"]
[Round "03"]
[TimeControl "180+1"]
[Date "2022.02.08"]
[WhiteClock "0:00:10"]
[BlackClock "0:00:18"]

1. d4 {[%clk 0:03:00]}  Nf6 {[%clk 0:02:58]} 2. Bg5 {[%clk 0:02:58]}  d5 {[%clk 0:02:57]} 3. Bxf6 {[%clk 0:02:55]}  gxf6 {[%clk 0:02:57]} 4. c4 {[%clk 0:02:54]}  e5 {[%clk 0:02:42]} 5. cxd5 {[%clk 0:02:43]}  Qxd5 {[%clk 0:02:41]} 6. Nf3 {[%clk 0:02:35]}  Nc6 {[%clk 0:02:37]} 7. Nc3 {[%clk 0:02:34]}  Bb4 {[%clk 0:02:38]} 8. dxe5 {[%clk 0:02:22]}  Qxd1+ {[%clk 0:02:35]} 9. Rxd1 {[%clk 0:02:22]}  Bxc3+ {[%clk 0:02:33]} 10. bxc3 {[%clk 0:02:20]}  fxe5 {[%clk 0:02:33]} 11. e3 {[%clk 0:02:19]}  Be6 {[%clk 0:02:20]} 12. a3 {[%clk 0:02:16]}  f6 {[%clk 0:02:03]} 13. Bb5 {[%clk 0:02:09]}  Ke7 {[%clk 0:01:58]} 14. Nd2 {[%clk 0:01:56]}  Na5 {[%clk 0:01:55]} 15. Ne4 {[%clk 0:01:51]}  b6 {[%clk 0:01:48]} 16. Ng3 {[%clk 0:01:37]}  Rad8 {[%clk 0:01:46]} 17. Ke2 {[%clk 0:01:33]}  Nc4 {[%clk 0:01:31]} 18. Bxc4 {[%clk 0:01:27]}  Bxc4+ {[%clk 0:01:32]} 19. Kf3 {[%clk 0:01:27]}  Ke6 {[%clk 0:01:11]} 20. e4 {[%clk 0:01:24]}  Bb3 {[%clk 0:00:58]} 21. Rxd8 {[%clk 0:01:03]}  Rxd8 {[%clk 0:00:59]} 22. Rc1 {[%clk 0:00:54]}  Rd2 {[%clk 0:00:56]} 23. Nf5 {[%clk 0:00:51]}  Ra2 {[%clk 0:00:54]} 24. h4 {[%clk 0:00:42]}  Rxa3 {[%clk 0:00:52]} 25. g4 {[%clk 0:00:43]}  Ba4 {[%clk 0:00:49]} 26. g5 {[%clk 0:00:41]}  fxg5 {[%clk 0:00:49]} 27. hxg5 {[%clk 0:00:42]}  Be8 {[%clk 0:00:50]} 28. Kg4 {[%clk 0:00:41]}  a5 {[%clk 0:00:49]} 29. Rh1 {[%clk 0:00:38]}  Bg6 {[%clk 0:00:48]} 30. Rd1 {[%clk 0:00:35]}  Rxc3 {[%clk 0:00:44]} 31. Rd8 {[%clk 0:00:35]}  a4 {[%clk 0:00:38]} 32. Ra8 {[%clk 0:00:35]}  a3 {[%clk 0:00:38]} 33. f4 {[%clk 0:00:34]}  exf4 {[%clk 0:00:36]} 34. Kxf4 {[%clk 0:00:35]}  b5 {[%clk 0:00:35]} 35. Nd4+ {[%clk 0:00:31]}  Kd7 {[%clk 0:00:33]} 36. Nxb5 {[%clk 0:00:30]}  Rc4 {[%clk 0:00:30]} 37. Rxa3 {[%clk 0:00:26]}  Rxe4+ {[%clk 0:00:30]} 38. Kf3 {[%clk 0:00:26]}  Re5 {[%clk 0:00:30]} 39. Nd4 {[%clk 0:00:23]}  Rxg5 {[%clk 0:00:29]} 40. Kf4 {[%clk 0:00:24]}  Rd5 {[%clk 0:00:30]} 41. Nf3 {[%clk 0:00:24]}  c5 {[%clk 0:00:29]} 42. Ra6 {[%clk 0:00:22]}  c4 {[%clk 0:00:27]} 43. Ne5+ {[%clk 0:00:22]}  Ke8 {[%clk 0:00:24]} 44. Rc6 {[%clk 0:00:20]}  Bd3 {[%clk 0:00:20]} 45. Rc7 {[%clk 0:00:17]}  Rd4+ {[%clk 0:00:19]} 46. Kg5 {[%clk 0:00:17]}  Rd5 {[%clk 0:00:19]} 47. Kf6 {[%clk 0:00:17]}  Rd6+ {[%clk 0:00:18]} 48. Kg5 {[%clk 0:00:18]}  h6+ {[%clk 0:00:18]} 49. Kf4 {[%clk 0:00:17]}  Re6 {[%clk 0:00:19]} 50. Rc8+ {[%clk 0:00:12]}  Ke7 {[%clk 0:00:18]} 51. Rc7+ {[%clk 0:00:12]}  Kd8 {[%clk 0:00:16]} 52. Rd7+ {[%clk 0:00:12]}  Kc8 {[%clk 0:00:17]} 53. Rd5 {[%clk 0:00:12]}  Re7 {[%clk 0:00:15]} 54. Nxd3 {[%clk 0:00:11]}  cxd3 {[%clk 0:00:15]} 55. Rxd3 {[%clk 0:00:11]}  Rh7 {[%clk 0:00:15]} 56. Kg4 {[%clk 0:00:11]}  h5+ {[%clk 0:00:16]} 57. Kh4 {[%clk 0:00:12]}  Kc7 {[%clk 0:00:17]} 58. Rd5 {[%clk 0:00:12]}  Kc6 {[%clk 0:00:17]} 59. Rxh5 {[%clk 0:00:11]}  Rxh5+ {[%clk 0:00:18]} 60. Kxh5 {[%clk 0:00:10]} 1/2-1/2


[Site "https://www.chess.com"]

[Event "Early Titled Tuesday Blitz | February 8 2022"]
[White "Xiong, Jeffery"]
[Black "Visakh N R"]
[WhiteFideId "2047640"]
[BlackFideId "25012223"]
[WhiteElo "2727"]
[BlackElo "2454"]
[Result "1-0"]
[Round "03"]
[TimeControl "180+1"]
[Date "2022.02.08"]
[WhiteClock "0:01:16"]
[BlackClock "0:01:38"]

1. d4 {[%clk 0:02:57]}  Nf6 {[%clk 0:03:00]} 2. c4 {[%clk 0:02:57]}  c5 {[%clk 0:03:00]} 3. d5 {[%clk 0:02:57]}  e6 {[%clk 0:03:00]} 4. Nc3 {[%clk 0:02:57]}  exd5 {[%clk 0:03:01]} 5. cxd5 {[%clk 0:02:58]}  d6 {[%clk 0:03:01]} 6. Nf3 {[%clk 0:02:59]}  g6 {[%clk 0:03:02]} 7. Nd2 {[%clk 0:02:59]}  Bg7 {[%clk 0:02:58]} 8. e4 {[%clk 0:03:00]}  O-O {[%clk 0:02:58]} 9. Be2 {[%clk 0:03:00]}  a6 {[%clk 0:02:53]} 10. a4 {[%clk 0:03:00]}  Nbd7 {[%clk 0:02:52]} 11. O-O {[%clk 0:03:00]}  Qe7 {[%clk 0:02:50]} 12. Re1 {[%clk 0:02:55]}  Ne8 {[%clk 0:02:41]} 13. Nc4 {[%clk 0:02:54]}  Ne5 {[%clk 0:02:39]} 14. Nb6 {[%clk 0:02:53]}  Rb8 {[%clk 0:02:40]} 15. Qb3 {[%clk 0:02:47]}  Qc7 {[%clk 0:02:32]} 16. Bg5 {[%clk 0:02:32]}  Nd7 {[%clk 0:02:22]} 17. Nxc8 {[%clk 0:02:30]}  Rxc8 {[%clk 0:02:20]} 18. Be7 {[%clk 0:02:30]}  c4 {[%clk 0:02:20]} 19. Qb4 {[%clk 0:02:20]}  Ne5 {[%clk 0:02:14]} 20. Bxf8 {[%clk 0:02:19]}  Kxf8 {[%clk 0:02:15]} 21. a5 {[%clk 0:02:08]}  Nf6 {[%clk 0:02:12]} 22. f4 {[%clk 0:02:08]}  Nd3 {[%clk 0:02:12]} 23. Bxd3 {[%clk 0:02:08]}  cxd3 {[%clk 0:02:13]} 24. e5 {[%clk 0:02:08]}  Nd7 {[%clk 0:02:12]} 25. Ne4 {[%clk 0:02:02]}  Kg8 {[%clk 0:02:06]} 26. Qxd6 {[%clk 0:01:48]}  Qxd6 {[%clk 0:01:53]} 27. Nxd6 {[%clk 0:01:48]}  Rc2 {[%clk 0:01:54]} 28. Rad1 {[%clk 0:01:41]}  Nc5 {[%clk 0:01:49]} 29. b4 {[%clk 0:01:41]}  d2 {[%clk 0:01:49]} 30. Re2 {[%clk 0:01:30]}  Nb3 {[%clk 0:01:49]} 31. Nxb7 {[%clk 0:01:20]}  Bf8 {[%clk 0:01:44]} 32. d6 {[%clk 0:01:20]}  f6 {[%clk 0:01:38]} 33. e6 {[%clk 0:01:16]} 1-0


[Site "https://www.chess.com"]

[Event "Early Titled Tuesday Blitz | February 8 2022"]
[White "Yang, Kaiqi"]
[Black "Vokhidov, Shamsiddin"]
[WhiteFideId "8604398"]
[BlackFideId "14204223"]
[WhiteElo "2373"]
[BlackElo "2611"]
[Result "1/2-1/2"]
[Round "03"]
[TimeControl "180+1"]
[Date "2022.02.08"]
[WhiteClock "0:00:03"]
[BlackClock "0:00:10"]

1. c4 {[%clk 0:03:00]}  e5 {[%clk 0:02:59]} 2. Nc3 {[%clk 0:03:01]}  Nf6 {[%clk 0:03:00]} 3. Nf3 {[%clk 0:03:01]}  Nc6 {[%clk 0:03:00]} 4. e4 {[%clk 0:03:01]}  Bb4 {[%clk 0:02:59]} 5. d3 {[%clk 0:03:02]}  d6 {[%clk 0:02:59]} 6. h3 {[%clk 0:02:55]}  a5 {[%clk 0:02:59]} 7. Be2 {[%clk 0:02:55]}  O-O {[%clk 0:02:59]} 8. O-O {[%clk 0:02:55]}  Bc5 {[%clk 0:02:59]} 9. Be3 {[%clk 0:02:54]}  Nd4 {[%clk 0:02:54]} 10. Qd2 {[%clk 0:02:37]}  c6 {[%clk 0:02:50]} 11. Rae1 {[%clk 0:02:17]}  a4 {[%clk 0:02:46]} 12. Bd1 {[%clk 0:02:16]}  a3 {[%clk 0:02:45]} 13. b3 {[%clk 0:02:15]}  Qa5 {[%clk 0:02:38]} 14. Qc1 {[%clk 0:02:04]}  Nxf3+ {[%clk 0:02:20]} 15. Bxf3 {[%clk 0:02:03]}  Bb4 {[%clk 0:02:19]} 16. Bd2 {[%clk 0:02:02]}  Nd7 {[%clk 0:02:19]} 17. Re3 {[%clk 0:01:51]}  Nc5 {[%clk 0:02:16]} 18. Bd1 {[%clk 0:01:51]}  f5 {[%clk 0:02:11]} 19. exf5 {[%clk 0:01:46]}  Bxf5 {[%clk 0:02:11]} 20. Be2 {[%clk 0:01:42]}  Ne6 {[%clk 0:02:07]} 21. Bg4 {[%clk 0:01:23]}  Nf4 {[%clk 0:01:22]} 22. Bxf5 {[%clk 0:01:19]}  Rxf5 {[%clk 0:01:23]} 23. Kh2 {[%clk 0:01:03]}  Raf8 {[%clk 0:01:22]} 24. Ne4 {[%clk 0:00:56]}  Ne6 {[%clk 0:01:14]} 25. Bxb4 {[%clk 0:00:49]}  Qxb4 {[%clk 0:01:15]} 26. f3 {[%clk 0:00:40]}  d5 {[%clk 0:01:03]} 27. Ng3 {[%clk 0:00:28]}  Rg5 {[%clk 0:00:59]} 28. Qe1 {[%clk 0:00:12]}  Qd6 {[%clk 0:00:55]} 29. h4 {[%clk 0:00:07]}  Rg6 {[%clk 0:00:55]} 30. Rxe5 {[%clk 0:00:07]}  Nf4 {[%clk 0:00:56]} 31. Rg5 {[%clk 0:00:05]}  Rxg5 {[%clk 0:00:52]} 32. hxg5 {[%clk 0:00:06]}  Nxd3 {[%clk 0:00:52]} 33. Qe3 {[%clk 0:00:07]}  dxc4 {[%clk 0:00:49]} 34. bxc4 {[%clk 0:00:06]}  Ne5 {[%clk 0:00:49]} 35. c5 {[%clk 0:00:06]}  Qd5 {[%clk 0:00:44]} 36. Re1 {[%clk 0:00:05]}  Nd7 {[%clk 0:00:32]} 37. Qe6+ {[%clk 0:00:05]}  Qxe6 {[%clk 0:00:31]} 38. Rxe6 {[%clk 0:00:06]}  Nxc5 {[%clk 0:00:32]} 39. Re3 {[%clk 0:00:06]}  Ra8 {[%clk 0:00:29]} 40. Nf5 {[%clk 0:00:07]}  g6 {[%clk 0:00:24]} 41. Nh6+ {[%clk 0:00:06]}  Kf8 {[%clk 0:00:25]} 42. Re5 {[%clk 0:00:05]}  b6 {[%clk 0:00:23]} 43. f4 {[%clk 0:00:03]}  Rd8 {[%clk 0:00:20]} 44. f5 {[%clk 0:00:03]}  Rd5 {[%clk 0:00:19]} 45. fxg6 {[%clk 0:00:01]}  Rxe5 {[%clk 0:00:17]} 46. gxh7 {[%clk 0:00:02]}  Kg7 {[%clk 0:00:15]} 47. h8=Q+ {[%clk 0:00:01]}  Kxh8 {[%clk 0:00:15]} 48. Nf7+ {[%clk 0:00:02]}  Kg7 {[%clk 0:00:15]} 49. Nxe5 {[%clk 0:00:03]}  Nd3 {[%clk 0:00:14]} 50. Nxc6 {[%clk 0:00:04]}  b5 {[%clk 0:00:15]} 51. Nd4 {[%clk 0:00:04]}  b4 {[%clk 0:00:15]} 52. Nc2 {[%clk 0:00:04]}  b3 {[%clk 0:00:14]} 53. axb3 {[%clk 0:00:03]}  a2 {[%clk 0:00:14]} 54. Na1 {[%clk 0:00:04]}  Kg6 {[%clk 0:00:14]} 55. Kg3 {[%clk 0:00:04]}  Kxg5 {[%clk 0:00:15]} 56. Kf3 {[%clk 0:00:04]}  Ne1+ {[%clk 0:00:13]} 57. Kf2 {[%clk 0:00:04]}  Nd3+ {[%clk 0:00:13]} 58. Ke3 {[%clk 0:00:05]}  Nf4 {[%clk 0:00:13]} 59. g3 {[%clk 0:00:04]}  Nh5 {[%clk 0:00:14]} 60. Kf3 {[%clk 0:00:05]}  Kf6 {[%clk 0:00:12]} 61. b4 {[%clk 0:00:05]}  Ke5 {[%clk 0:00:12]} 62. b5 {[%clk 0:00:04]}  Kd5 {[%clk 0:00:13]} 63. g4 {[%clk 0:00:05]}  Ng7 {[%clk 0:00:13]} 64. Kf4 {[%clk 0:00:05]}  Kc5 {[%clk 0:00:13]} 65. Ke5 {[%clk 0:00:05]}  Kxb5 {[%clk 0:00:14]} 66. Kf6 {[%clk 0:00:05]}  Ne8+ {[%clk 0:00:14]} 67. Ke7 {[%clk 0:00:05]}  Ng7 {[%clk 0:00:14]} 68. Kf6 {[%clk 0:00:05]}  Ne8+ {[%clk 0:00:14]} 69. Ke7 {[%clk 0:00:06]}  Nc7 {[%clk 0:00:14]} 70. g5 {[%clk 0:00:06]}  Nd5+ {[%clk 0:00:15]} 71. Ke6 {[%clk 0:00:05]}  Nf4+ {[%clk 0:00:15]} 72. Kf5 {[%clk 0:00:05]}  Nd5 {[%clk 0:00:15]} 73. Ke5 {[%clk 0:00:05]}  Ne7 {[%clk 0:00:14]} 74. Ke6 {[%clk 0:00:05]}  Ng6 {[%clk 0:00:14]} 75. Kf5 {[%clk 0:00:04]}  Nh4+ {[%clk 0:00:14]} 76. Kg4 {[%clk 0:00:05]}  Ng6 {[%clk 0:00:15]} 77. Kf5 {[%clk 0:00:05]}  Nf8 {[%clk 0:00:15]} 78. Kf6 {[%clk 0:00:05]}  Kb4 {[%clk 0:00:12]} 79. Kf7 {[%clk 0:00:05]}  Nd7 {[%clk 0:00:13]} 80. Ke6 {[%clk 0:00:05]}  Nf8+ {[%clk 0:00:13]} 81. Kf7 {[%clk 0:00:05]}  Nd7 {[%clk 0:00:13]} 82. Ke6 {[%clk 0:00:06]}  Nc5+ {[%clk 0:00:13]} 83. Kd5 {[%clk 0:00:05]}  Nd7 {[%clk 0:00:10]} 84. g6 {[%clk 0:00:03]}  Nf6+ {[%clk 0:00:08]} 85. Kd4 {[%clk 0:00:02]}  Nh5 {[%clk 0:00:08]} 86. Kd3 {[%clk 0:00:02]}  Ka3 {[%clk 0:00:07]} 87. Kc2 {[%clk 0:00:03]}  Ng7 {[%clk 0:00:07]} 88. Kc3 {[%clk 0:00:03]}  Nf5 {[%clk 0:00:08]} 89. Kc2 {[%clk 0:00:03]}  Nd4+ {[%clk 0:00:07]} 90. Kc3 {[%clk 0:00:02]}  Ne6 {[%clk 0:00:08]} 91. Nc2+ {[%clk 0:00:02]}  Ka4 {[%clk 0:00:08]} 92. Kb2 {[%clk 0:00:02]}  a1=Q+ {[%clk 0:00:08]} 93. Nxa1 {[%clk 0:00:02]}  Kb4 {[%clk 0:00:08]} 94. Nc2+ {[%clk 0:00:02]}  Kc4 {[%clk 0:00:09]} 95. Kc1 {[%clk 0:00:03]}  Kd5 {[%clk 0:00:08]} 96. Kd2 {[%clk 0:00:03]}  Ke5 {[%clk 0:00:09]} 97. Ne3 {[%clk 0:00:02]}  Kf6 {[%clk 0:00:09]} 98. Nc2 {[%clk 0:00:03]}  Kxg6 {[%clk 0:00:10]} 1/2-1/2


[Site "https://www.chess.com"]

[Event "Early Titled Tuesday Blitz | February 8 2022"]
[White "Yirik, Volkan"]
[Black "Svane, Frederik"]
[WhiteFideId "6300782"]
[BlackFideId "12923044"]
[WhiteElo "2357"]
[BlackElo "2831"]
[Result "0-1"]
[Round "03"]
[TimeControl "180+1"]
[Date "2022.02.08"]
[WhiteClock "0:01:21"]
[BlackClock "0:00:04"]

1. e4 {[%clk 0:03:00]}  c5 {[%clk 0:03:00]} 2. Nc3 {[%clk 0:03:00]}  Nc6 {[%clk 0:03:00]} 3. f4 {[%clk 0:03:01]}  g6 {[%clk 0:02:59]} 4. Bc4 {[%clk 0:03:01]}  Bg7 {[%clk 0:02:59]} 5. Nf3 {[%clk 0:03:01]}  e6 {[%clk 0:03:00]} 6. O-O {[%clk 0:03:02]}  Nge7 {[%clk 0:03:00]} 7. Qe1 {[%clk 0:03:01]}  O-O {[%clk 0:03:00]} 8. d3 {[%clk 0:03:01]}  d5 {[%clk 0:03:00]} 9. Bb3 {[%clk 0:03:02]}  Nd4 {[%clk 0:03:00]} 10. Nxd4 {[%clk 0:03:02]}  cxd4 {[%clk 0:03:01]} 11. Ne2 {[%clk 0:03:03]}  dxe4 {[%clk 0:03:02]} 12. dxe4 {[%clk 0:03:04]}  d3 {[%clk 0:02:37]} 13. Nc3 {[%clk 0:03:02]}  Nc6 {[%clk 0:02:35]} 14. Be3 {[%clk 0:03:00]}  dxc2 {[%clk 0:02:30]} 15. Bxc2 {[%clk 0:02:59]}  Bd4 {[%clk 0:02:12]} 16. Rd1 {[%clk 0:02:56]}  Qb6 {[%clk 0:02:12]} 17. Bxd4 {[%clk 0:02:26]}  Nxd4 {[%clk 0:02:12]} 18. Na4 {[%clk 0:02:25]}  Nf3+ {[%clk 0:01:57]} 19. Kh1 {[%clk 0:02:23]}  Nxe1 {[%clk 0:01:57]} 20. Nxb6 {[%clk 0:02:22]}  axb6 {[%clk 0:01:04]} 21. Rfxe1 {[%clk 0:02:20]}  Rxa2 {[%clk 0:01:05]} 22. Bb3 {[%clk 0:01:58]}  Rxb2 {[%clk 0:01:05]} 23. Re3 {[%clk 0:01:59]}  Kg7 {[%clk 0:00:18]} 24. h3 {[%clk 0:01:58]}  Re8 {[%clk 0:00:19]} 25. e5 {[%clk 0:01:55]}  Re7 {[%clk 0:00:19]} 26. Red3 {[%clk 0:01:54]}  Bd7 {[%clk 0:00:14]} 27. Rxd7 {[%clk 0:01:45]}  Rxd7 {[%clk 0:00:15]} 28. Rxd7 {[%clk 0:01:46]}  Rxb3 {[%clk 0:00:15]} 29. Rxb7 {[%clk 0:01:47]}  h5 {[%clk 0:00:14]} 30. h4 {[%clk 0:01:42]}  b5 {[%clk 0:00:08]} 31. Rb8 {[%clk 0:01:37]}  Rb4 {[%clk 0:00:06]} 32. g3 {[%clk 0:01:37]}  Rb2 {[%clk 0:00:06]} 33. Kg1 {[%clk 0:01:37]}  b4 {[%clk 0:00:06]} 34. Kh1 {[%clk 0:01:37]}  b3 {[%clk 0:00:07]} 35. Kg1 {[%clk 0:01:37]}  g5 {[%clk 0:00:07]} 36. fxg5 {[%clk 0:01:32]}  Kg6 {[%clk 0:00:07]} 37. Kf1 {[%clk 0:01:27]}  Kf5 {[%clk 0:00:07]} 38. Rf8 {[%clk 0:01:25]}  Rc2 {[%clk 0:00:02]} 39. Rxf7+ {[%clk 0:01:24]}  Kg6 {[%clk 0:00:03]} 40. Rb7 {[%clk 0:01:18]}  b2 {[%clk 0:00:03]} 41. Ke1 {[%clk 0:01:18]}  Rc1+ {[%clk 0:00:04]} 42. Kd2 {[%clk 0:01:19]}  b1=Q {[%clk 0:00:05]} 43. Re7 {[%clk 0:01:19]}  Qc2+ {[%clk 0:00:04]} 44. Ke3 {[%clk 0:01:20]}  Re1+ {[%clk 0:00:04]} 45. Kd4 {[%clk 0:01:21]}  Re4# {[%clk 0:00:04]} 0-1


[Site "https://www.chess.com"]

[Event "Early Titled Tuesday Blitz | February 8 2022"]
[White "Yonal, Timur"]
[Black "Urbina Perez, Juan Antonio"]
[WhiteFideId "44115725"]
[BlackFideId "2217368"]
[WhiteElo "1762"]
[BlackElo "2192"]
[Result "0-1"]
[Round "03"]
[TimeControl "180+1"]
[Date "2022.02.08"]
[WhiteClock "0:00:01"]
[BlackClock "0:01:56"]

1. e4 {[%clk 0:02:29]}  c6 {[%clk 0:02:58]} 2. d4 {[%clk 0:02:28]}  d5 {[%clk 0:02:58]} 3. Nc3 {[%clk 0:02:27]}  dxe4 {[%clk 0:02:57]} 4. Nxe4 {[%clk 0:02:26]}  Nd7 {[%clk 0:02:57]} 5. Nf3 {[%clk 0:02:25]}  Ngf6 {[%clk 0:02:57]} 6. Nxf6+ {[%clk 0:02:12]}  Nxf6 {[%clk 0:02:58]} 7. Bd3 {[%clk 0:02:12]}  Bg4 {[%clk 0:02:58]} 8. c3 {[%clk 0:02:05]}  e6 {[%clk 0:02:57]} 9. O-O {[%clk 0:01:47]}  Qd5 {[%clk 0:02:54]} 10. Be2 {[%clk 0:01:34]}  Be7 {[%clk 0:02:53]} 11. h3 {[%clk 0:01:31]}  Bf5 {[%clk 0:02:53]} 12. Bg5 {[%clk 0:01:30]}  h6 {[%clk 0:02:52]} 13. Bxf6 {[%clk 0:01:24]}  Bxf6 {[%clk 0:02:52]} 14. Bd3 {[%clk 0:01:25]}  Bxd3 {[%clk 0:02:50]} 15. Qxd3 {[%clk 0:01:25]}  O-O {[%clk 0:02:50]} 16. c4 {[%clk 0:01:15]}  Qd6 {[%clk 0:02:47]} 17. Rad1 {[%clk 0:01:12]}  Rfd8 {[%clk 0:02:47]} 18. c5 {[%clk 0:01:05]}  Qd5 {[%clk 0:02:46]} 19. a3 {[%clk 0:00:49]}  Rd7 {[%clk 0:02:45]} 20. Rd2 {[%clk 0:00:39]}  Rad8 {[%clk 0:02:45]} 21. Rfd1 {[%clk 0:00:39]}  e5 {[%clk 0:02:39]} 22. Qc3 {[%clk 0:00:16]}  exd4 {[%clk 0:02:32]} 23. Qb4 {[%clk 0:00:15]}  Qf5 {[%clk 0:02:08]} 24. Nxd4 {[%clk 0:00:04]}  Qf4 {[%clk 0:02:00]} 25. Nc2 {[%clk 0:00:01]}  Qxb4 {[%clk 0:01:56]} 0-1


[Site "https://www.chess.com"]

[Event "Early Titled Tuesday Blitz | February 8 2022"]
[White "Yuan, Qingyu"]
[Black "Rodchenkov, Sergey D."]
[WhiteFideId "8609772"]
[BlackFideId "4168712"]
[WhiteElo "2359"]
[BlackElo "2306"]
[Result "1-0"]
[Round "03"]
[TimeControl "180+1"]
[Date "2022.02.08"]
[WhiteClock "0:00:12"]
[BlackClock "0:00:09"]

1. Nf3 {[%clk 0:03:00]}  d5 {[%clk 0:02:58]} 2. g3 {[%clk 0:03:00]}  Nf6 {[%clk 0:02:59]} 3. Bg2 {[%clk 0:03:01]}  Bg4 {[%clk 0:02:59]} 4. O-O {[%clk 0:03:00]}  c6 {[%clk 0:02:58]} 5. h3 {[%clk 0:03:00]}  Bh5 {[%clk 0:02:56]} 6. d3 {[%clk 0:02:58]}  Nbd7 {[%clk 0:02:56]} 7. c4 {[%clk 0:02:57]}  dxc4 {[%clk 0:02:44]} 8. dxc4 {[%clk 0:02:55]}  e5 {[%clk 0:02:44]} 9. Nc3 {[%clk 0:02:55]}  Bc5 {[%clk 0:02:42]} 10. Nh4 {[%clk 0:02:40]}  O-O {[%clk 0:02:36]} 11. Qc2 {[%clk 0:02:40]}  a5 {[%clk 0:02:24]} 12. Na4 {[%clk 0:02:30]}  Ba7 {[%clk 0:02:06]} 13. Rd1 {[%clk 0:02:22]}  Bg6 {[%clk 0:02:02]} 14. Nxg6 {[%clk 0:02:21]}  hxg6 {[%clk 0:02:03]} 15. c5 {[%clk 0:02:18]}  Qe7 {[%clk 0:01:57]} 16. Be3 {[%clk 0:02:17]}  Rfd8 {[%clk 0:01:50]} 17. Qc3 {[%clk 0:02:15]}  Bb8 {[%clk 0:01:46]} 18. Rd2 {[%clk 0:02:05]}  Bc7 {[%clk 0:01:44]} 19. Qb3 {[%clk 0:01:58]}  Rdb8 {[%clk 0:01:33]} 20. Rad1 {[%clk 0:01:57]}  Nf8 {[%clk 0:01:31]} 21. Nb6 {[%clk 0:01:39]}  Bxb6 {[%clk 0:01:24]} 22. Qxb6 {[%clk 0:01:36]}  Ne6 {[%clk 0:01:23]} 23. Rd6 {[%clk 0:01:33]}  Nc7 {[%clk 0:01:06]} 24. Bg5 {[%clk 0:01:26]}  Ne6 {[%clk 0:00:51]} 25. Be3 {[%clk 0:01:04]}  Nc7 {[%clk 0:00:50]} 26. Bg5 {[%clk 0:01:03]}  Ne6 {[%clk 0:00:50]} 27. Bxf6 {[%clk 0:01:00]}  gxf6 {[%clk 0:00:49]} 28. e3 {[%clk 0:01:00]}  Ra6 {[%clk 0:00:46]} 29. Qb3 {[%clk 0:00:52]}  Nxc5 {[%clk 0:00:45]} 30. Qc4 {[%clk 0:00:46]}  Ne6 {[%clk 0:00:44]} 31. h4 {[%clk 0:00:42]}  Raa8 {[%clk 0:00:43]} 32. Rd7 {[%clk 0:00:42]}  Qe8 {[%clk 0:00:41]} 33. h5 {[%clk 0:00:34]}  Rd8 {[%clk 0:00:21]} 34. Rxd8 {[%clk 0:00:30]}  Rxd8 {[%clk 0:00:20]} 35. Rxd8 {[%clk 0:00:30]}  Qxd8 {[%clk 0:00:16]} 36. hxg6 {[%clk 0:00:30]}  Qd1+ {[%clk 0:00:16]} 37. Bf1 {[%clk 0:00:29]}  Ng5 {[%clk 0:00:15]} 38. f4 {[%clk 0:00:21]}  Nf3+ {[%clk 0:00:14]} 39. Kf2 {[%clk 0:00:17]}  Qd2+ {[%clk 0:00:01]} 40. Kxf3 {[%clk 0:00:12]}  e4+ {[%clk 0:00:01]} 41. Kg4 {[%clk 0:00:04]}  f5+ {[%clk 0:00:02]} 42. Kh3 {[%clk 0:00:03]}  Qd5 {[%clk 0:00:02]} 43. Qxd5 {[%clk 0:00:03]}  cxd5 {[%clk 0:00:03]} 44. gxf7+ {[%clk 0:00:04]}  Kxf7 {[%clk 0:00:04]} 45. g4 {[%clk 0:00:04]}  Ke6 {[%clk 0:00:05]} 46. g5 {[%clk 0:00:05]}  d4 {[%clk 0:00:05]} 47. exd4 {[%clk 0:00:05]}  Kf7 {[%clk 0:00:04]} 48. Bc4+ {[%clk 0:00:05]}  Kg7 {[%clk 0:00:04]} 49. Kg3 {[%clk 0:00:06]}  b6 {[%clk 0:00:04]} 50. Kf2 {[%clk 0:00:06]}  Kg6 {[%clk 0:00:05]} 51. Bb5 {[%clk 0:00:07]}  Kh5 {[%clk 0:00:05]} 52. Ke3 {[%clk 0:00:08]}  Kg4 {[%clk 0:00:06]} 53. Be2+ {[%clk 0:00:08]}  Kh3 {[%clk 0:00:06]} 54. g6 {[%clk 0:00:09]}  Kg2 {[%clk 0:00:07]} 55. g7 {[%clk 0:00:10]}  Kh2 {[%clk 0:00:08]} 56. g8=Q {[%clk 0:00:11]}  b5 {[%clk 0:00:08]} 57. d5 {[%clk 0:00:11]}  b4 {[%clk 0:00:09]} 58. d6 {[%clk 0:00:12]} 1-0


[Site "https://www.chess.com"]